lending/lending_fUSD_20250719
["ID","MTS","AMOUNT","RATE_DAILY","PERIOD"]
[373166754,1752888689253,-1009.72,0.00019616,2]
[373166755,1752888689263,-1912.01,0.00019616,2]
[373166756,1752888689274,-3332.41,0.00019616,2]
[373166757,1752888689286,-1164.19,0.00019616,2]
[373166758,1752888689295,-1204.49,0.00019616,2]
[373166759,1752888689304,-480.0,0.00019616,2]
[373166760,1752888689314,-480.0,0.00019616,2]
[373166761,1752888689323,-2333.35,0.00019616,2]
[373166762,1752888689332,-480.0,0.00019616,2]
[373166763,1752888689342,-460.0,0.00019616,2]
[373166764,1752888689351,-480.0,0.00019616,2]
[373166765,1752888689360,-480.0,0.00019616,2]
[373166766,1752888689369,-480.0,0.00019616,2]
[373166767,1752888689378,-642.55,0.00019616,2]
[373166768,1752888689388,-645.39,0.00019616,2]
[373166769,1752888689397,-480.0,0.00019616,2]
[373166770,1752888689408,-1344.15,0.00019616,2]
[373166771,1752888689418,-1024.03,0.00019616,2]
[373166772,1752888689427,-480.0,0.00019616,2]
[373166773,1752888689436,-480.0,0.00019616,2]
[373166774,1752888689445,-1675.21,0.00019616,2]
[373166775,1752888689456,-656.42,0.00019616,2]
[373166776,1752888689465,-2380.94,0.00019616,2]
[373166777,1752888689474,-480.0,0.00019616,2]
[373166778,1752888689484,-565.56,0.00019616,2]
[373166779,1752888689493,-1145.56,0.00019616,2]
[373166780,1752888689502,-2595.14,0.00019616,2]
[373166781,1752888689511,-2293.05,0.00019616,2]
[373166782,1752888689521,-246.86049425,0.00019616,2]
[373166783,1752888689530,-480.0,0.00019616,2]
[373166784,1752888689539,-6879.99,0.00019616,2]
[373166785,1752888689548,-480.0,0.00019616,2]
[373166786,1752888689557,-480.0,0.00019616,2]
[373166787,1752888689567,-904.05,0.00019616,2]
[373166788,1752888689577,-1167.24,0.00019616,2]
[373166789,1752888689586,-480.0,0.00019616,2]
[373166790,1752888689596,-2324.72,0.00019616,2]
[373166791,1752888689606,-657.5,0.00019616,2]
[373166792,1752888689615,-480.0,0.00019616,2]
[373166793,1752888689625,-1846.36,0.00019616,2]
[373166794,1752888689635,-2058.15,0.00019616,2]
[373166795,1752888689644,-480.0,0.00019616,2]
[373166796,1752888689655,-480.0,0.00019616,2]
[373166797,1752888689664,-480.0,0.00019616,2]
[373166798,1752888689673,-784.99,0.00019616,2]
[373166799,1752888689683,-480.0,0.00019616,2]
[373166800,1752888689692,-1787.76,0.00019616,2]
[373166801,1752888689701,-694.6,0.00019616,2]
[373166802,1752888689711,-2668.26,0.00019616,2]
[373166803,1752888689720,-1118.66,0.00019616,2]
[373166804,1752888689729,-480.0,0.00019616,2]
[373166805,1752888689738,-3471.23,0.00019616,2]
[373166806,1752888689747,-480.0,0.00019616,2]
[373166807,1752888689757,-480.0,0.00019616,2]
[373166808,1752888689767,-480.0,0.00019616,2]
[373166809,1752888689776,-745.51,0.00019616,2]
[373166810,1752888689786,-6088.28,0.00019616,2]
[373166811,1752888689796,-1379.76,0.00019616,2]
[373166812,1752888689806,-480.0,0.00019616,2]
[373166813,1752888689815,-480.0,0.00019616,2]
[373166814,1752888689825,-2501.63,0.00019616,2]
[373166815,1752888689834,-3402.23,0.00019616,2]
[373166816,1752888689844,-480.0,0.00019616,2]
[373166817,1752888689853,-6003.03003728,0.00019626,2]
[373166818,1752888689863,-160.73574911,0.00019626,2]
[373166819,1752888689873,-4597.25088046,0.00019626,2]
[373166820,1752888689883,-1118.85626597,0.00019626,4]
[373166821,1752888689894,-1118.85626597,0.00019626,4]
[373166822,1752888689904,-1118.85626597,0.00019626,4]
[373166823,1752888689913,-1118.85626597,0.00019626,4]
[373166824,1752888689922,-1118.85626597,0.00019626,4]
[373166825,1752888689932,-1118.85626597,0.00019626,4]
[373166826,1752888689942,-1118.85626597,0.00019626,4]
[373166827,1752888689952,-1118.85626597,0.00019626,4]
[373166828,1752888689961,-1118.85626597,0.00019626,4]
[373166829,1752888689972,-1118.85626597,0.00019626,4]
[373166830,1752888689981,-1118.85626597,0.00019626,4]
[373166831,1752888689990,-1118.85626597,0.00019626,4]
[373166832,1752888689999,-1118.85626597,0.00019626,4]
[373166833,1752888690009,-1118.85626597,0.00019626,4]
[373166834,1752888690018,-1118.85626597,0.00019626,4]
[373166835,1752888690027,-1118.85626597,0.00019626,4]
[373166836,1752888690037,-1118.85626597,0.00019626,4]
[373166837,1752888690046,-1118.85626597,0.00019626,4]
[373166838,1752888690055,-1118.85626597,0.00019626,4]
[373166839,1752888690064,-1118.85,0.00019626,4]
[373166840,1752888690073,-849.97059082,0.00019626,4]
[373166841,1752888690082,-849.97059082,0.00019626,4]
[373166842,1752888690091,-849.97059082,0.00019626,4]
[373166843,1752888690100,-849.97059082,0.00019626,4]
[373166844,1752888690110,-849.97059082,0.00019626,4]
[373166845,1752888690119,-849.97059082,0.00019626,4]
[373166846,1752888690128,-849.97059082,0.00019626,4]
[373166847,1752888690137,-849.97059082,0.00019626,4]
[373166848,1752888690148,-849.97059082,0.00019626,4]
[373166849,1752888690159,-849.97059082,0.00019626,4]
[373166850,1752888690168,-849.97059082,0.00019626,4]
[373166851,1752888690177,-849.97059082,0.00019626,4]
[373166852,1752888690185,-849.97059082,0.00019626,4]
[373166853,1752888690195,-849.97059082,0.00019626,4]
[373166854,1752888690204,-849.97059082,0.00019626,4]
[373166855,1752888690213,-849.97059082,0.00019626,4]
[373166856,1752888690223,-849.97059082,0.00019626,4]
[373166857,1752888690233,-849.97059082,0.00019626,4]
[373166858,1752888690244,-849.97059082,0.00019626,4]
[373166859,1752888690253,-849.97,0.00019626,4]
[373166860,1752888690262,-1401.53915633,0.00019626,4]
[373166861,1752888690271,-1401.53915633,0.00019626,4]
[373166862,1752888690280,-1401.53915633,0.00019626,4]
[373166863,1752888690289,-1401.53915633,0.00019626,4]
[373166864,1752888690301,-1401.53915633,0.00019626,4]
[373166865,1752888690312,-1401.53915633,0.00019626,4]
[373166866,1752888690322,-1401.53915633,0.00019626,4]
[373166867,1752888690332,-1401.53915633,0.00019626,4]
[373166868,1752888690341,-1401.53915633,0.00019626,4]
[373166869,1752888690351,-1401.53915633,0.00019626,4]
[373166870,1752888690359,-1401.53915633,0.00019626,4]
[373166871,1752888690368,-1401.53915633,0.00019626,4]
[373166872,1752888690377,-1401.53915633,0.00019626,4]
[373166873,1752888690387,-1401.53915633,0.00019626,4]
[373166874,1752888690396,-1401.53915633,0.00019626,4]
[373166875,1752888690406,-1401.53915633,0.00019626,4]
[373166876,1752888690415,-1401.53915633,0.00019626,4]
[373166877,1752888690424,-1401.53915633,0.00019626,4]
[373166878,1752888690433,-1401.53915633,0.00019626,4]
[373166879,1752888690442,-1401.53,0.00019626,4]
[373166880,1752888690451,-150.0,0.00019627,2]
[373166881,1752888690461,-329.55,0.00019628,2]
[373166882,1752888690470,-1353.42391,0.0001966,2]
[373166883,1752888690479,-4233.18587294,0.00019662,2]
[373166884,1752888690488,-500.0,0.00019673,2]
[373166885,1752888690498,-301.3,0.00019681,2]
[373166886,1752888690507,-150.0,0.00019683,2]
[373166887,1752888690516,-206.0,0.0001971,2]
[373166888,1752888690525,-150.0,0.00019715,2]
[373166889,1752888690534,-250.49229882,0.00019715,2]
[373166890,1752888690543,-500.0,0.00019715,2]
[373166891,1752888690553,-250.16342423,0.00019715,2]
[373166892,1752888690562,-500.0,0.00019715,2]
[373166893,1752888690571,-500.0,0.00019715,2]
[373166894,1752888690581,-150.0,0.00019715,2]
[373166895,1752888690590,-150.0,0.00019715,2]
[373166896,1752888690599,-500.0,0.00019715,2]
[373166897,1752888690608,-150.0,0.00019715,2]
[373166898,1752888690617,-500.0,0.00019715,2]
[373166899,1752888690626,-302.4521842,0.00019715,2]
[373166900,1752888690635,-500.0,0.00019715,2]
[373166901,1752888690645,-822.0,0.00019715,2]
[373166902,1752888690656,-500.0,0.00019715,2]
[373166903,1752888690665,-3307.0,0.00019715,2]
[373166904,1752888690675,-250.0,0.00019715,2]
[373166905,1752888690684,-500.0,0.00019715,2]
[373166906,1752888690693,-963.0,0.00019715,2]
[373166907,1752888690703,-150.0,0.00019715,2]
[373166908,1752888690714,-500.0,0.00019715,2]
[373166909,1752888690723,-150.0,0.00019715,2]
[373166910,1752888690733,-150.0,0.00019715,2]
[373166911,1752888690742,-500.0,0.00019715,2]
[373166912,1752888690752,-251.47085306,0.00019715,2]
[373166913,1752888690761,-150.0,0.00019715,2]
[373166914,1752888690770,-500.0,0.00019715,2]
[373166915,1752888690780,-351.95057312,0.00019715,2]
[373166916,1752888690789,-500.0,0.00019715,2]
[373166917,1752888690799,-260.87830655,0.00019717,2]
[373166918,1752888690808,-500.0,0.00019721,2]
[373166919,1752888690817,-500.0,0.00019721,2]
[373166920,1752888690827,-498.0,0.00019721,2]
[373166921,1752888690836,-1000.0,0.00019721,2]
[373166922,1752888690845,-664.16143243,0.00019721,2]
[373166923,1752888690855,-294.10762702,0.00019726,2]
[373166924,1752888690864,-480.0,0.00019726,2]
[373166925,1752888690873,-480.0,0.00019726,2]
[373166926,1752888690882,-480.0,0.00019726,2]
[373166927,1752888690891,-480.0,0.00019726,2]
[373166928,1752888690901,-480.0,0.00019726,2]
[373166929,1752888690911,-480.0,0.00019726,2]
[373166930,1752888690921,-480.0,0.00019726,2]
[373166931,1752888690930,-480.0,0.00019726,2]
[373166932,1752888690939,-480.0,0.00019726,2]
[373166933,1752888690948,-480.0,0.00019726,2]
[373166934,1752888690957,-480.0,0.00019726,2]
[373166935,1752888690966,-488.24289798,0.00019726,2]
[373166936,1752888690975,-480.0,0.00019726,2]
[373166937,1752888690984,-619.4,0.00019726,2]
[373166938,1752888690993,-480.0,0.00019726,2]
[373166939,1752888691003,-480.0,0.00019726,2]
[373166940,1752888691012,-480.0,0.00019726,2]
[373166941,1752888691021,-526.77,0.00019726,2]
[373166942,1752888691030,-480.0,0.00019726,2]
[373166943,1752888691039,-480.0,0.00019726,2]
[373166944,1752888691048,-480.0,0.00019726,2]
[373166945,1752888691057,-174.13516644,0.00019726,2]
[373166946,1752888691067,-522.6,0.00019726,2]
[373166947,1752888691076,-480.0,0.00019726,2]
[373166948,1752888691085,-480.0,0.00019726,2]
[373166949,1752888691094,-480.0,0.00019726,2]
[373166950,1752888691103,-480.0,0.00019726,2]
[373166951,1752888691112,-480.0,0.00019726,2]
[373166952,1752888691122,-480.0,0.00019726,2]
[373166953,1752888691131,-531.64,0.00019726,2]
[373166954,1752888691140,-480.0,0.00019726,2]
[373166955,1752888691151,-480.0,0.00019726,2]
[373166956,1752888691161,-171.41,0.00019726,2]
[373166957,1752888691170,-480.0,0.00019726,2]
[373166958,1752888691179,-480.0,0.00019726,2]
[373166959,1752888691188,-480.0,0.00019726,2]
[373166960,1752888691197,-480.0,0.00019726,2]
[373166961,1752888691207,-480.0,0.00019726,2]
[373166962,1752888691218,-480.0,0.00019726,2]
[373166963,1752888691230,-480.0,0.00019726,2]
[373166964,1752888691240,-480.0,0.00019726,2]
[373166965,1752888691250,-480.0,0.00019726,2]
[373166966,1752888691261,-480.0,0.00019726,2]
[373166967,1752888691271,-480.0,0.00019726,2]
[373166968,1752888691281,-480.0,0.00019726,2]
[373166969,1752888691290,-506.35,0.00019726,2]
[373166970,1752888691300,-480.0,0.00019726,2]
[373166971,1752888691309,-480.0,0.00019726,2]
[373166972,1752888691319,-480.0,0.00019726,2]
[373166973,1752888691329,-792.99,0.00019726,2]
[373166974,1752888691339,-480.0,0.00019726,2]
[373166975,1752888691351,-480.0,0.00019726,2]
[373166976,1752888691360,-480.0,0.00019726,2]
[373166977,1752888691370,-480.0,0.00019726,2]
[373166978,1752888691382,-480.0,0.00019726,2]
[373166979,1752888691392,-480.0,0.00019726,2]
[373166980,1752888691401,-659.27,0.00019726,2]
[373166981,1752888691412,-480.0,0.00019726,2]
[373166982,1752888691421,-165.94414208,0.00019726,2]
[373166983,1752888691431,-480.0,0.00019726,2]
[373166984,1752888691440,-480.0,0.00019726,2]
[373166985,1752888691451,-480.0,0.00019726,2]
[373166986,1752888691462,-879.89,0.00019726,2]
[373166987,1752888691473,-480.0,0.00019726,2]
[373166988,1752888691483,-480.0,0.00019726,2]
[373166989,1752888691493,-480.0,0.00019726,2]
[373166990,1752888691502,-480.0,0.00019726,2]
[373166991,1752888691511,-480.0,0.00019726,2]
[373166992,1752888691521,-480.0,0.00019726,2]
[373166993,1752888691530,-480.0,0.00019726,2]
[373166994,1752888691539,-480.0,0.00019726,2]
[373166995,1752888691547,-480.0,0.00019726,2]
[373166996,1752888691557,-849.49,0.00019726,2]
[373166997,1752888691567,-376.3026076,0.00019726,2]
[373166998,1752888691577,-480.0,0.00019726,2]
[373166999,1752888691588,-480.0,0.00019726,2]
[373167000,1752888691600,-480.0,0.00019726,2]
[373167001,1752888691611,-1260.04,0.00019726,2]
[373167002,1752888691622,-480.0,0.00019726,2]
[373167003,1752888691632,-480.0,0.00019726,2]
[373167004,1752888691642,-480.0,0.00019726,2]
[373167005,1752888691652,-480.0,0.00019726,2]
[373167006,1752888691662,-480.0,0.00019726,2]
[373167007,1752888691671,-524.26,0.00019726,2]
[373167008,1752888691680,-664.17,0.00019726,2]
[373167009,1752888691689,-914.42,0.00019726,2]
[373167010,1752888691698,-480.0,0.00019726,2]
[373167011,1752888691707,-655.69,0.00019726,2]
[373167012,1752888691716,-480.0,0.00019726,2]
[373167013,1752888691725,-644.27,0.00019726,2]
[373167014,1752888691734,-840.85,0.00019726,2]
[373167015,1752888691743,-480.0,0.00019726,2]
[373167016,1752888691753,-480.0,0.00019726,2]
[373167017,1752888691762,-480.0,0.00019726,2]
[373167018,1752888691771,-617.21,0.00019726,2]
[373167019,1752888691780,-480.0,0.00019726,2]
[373167020,1752888691789,-480.0,0.00019726,2]
[373167021,1752888691798,-611.79,0.00019726,2]
[373167022,1752888691807,-480.0,0.00019726,2]
[373167023,1752888691817,-480.0,0.00019726,2]
[373167024,1752888691826,-480.0,0.00019726,2]
[373167025,1752888691836,-480.0,0.00019726,2]
[373167026,1752888691845,-480.0,0.00019726,2]
[373167027,1752888691854,-631.4,0.00019726,2]
[373167028,1752888691863,-480.0,0.00019726,2]
[373167029,1752888691872,-667.12,0.00019726,2]
[373167030,1752888691881,-480.0,0.00019726,2]
[373167031,1752888691891,-353.27619637,0.00019726,2]
[373167032,1752888691900,-998.16,0.00019726,2]
[373167033,1752888691909,-434.01,0.00019726,2]
[373167034,1752888691918,-480.0,0.00019726,2]
[373167035,1752888691928,-480.0,0.00019726,2]
[373167036,1752888691938,-480.0,0.00019726,2]
[373167037,1752888691947,-485.49,0.00019726,2]
[373167038,1752888691956,-877.71,0.00019726,2]
[373167039,1752888691965,-480.0,0.00019726,2]
[373167040,1752888691976,-480.0,0.00019726,2]
[373167041,1752888691998,-480.0,0.00019726,2]
[373167042,1752888692012,-480.0,0.00019726,2]
[373167043,1752888692021,-881.24,0.00019726,2]
[373167044,1752888692030,-574.92,0.00019726,2]
[373167045,1752888692040,-480.0,0.00019726,2]
[373167046,1752888692049,-480.0,0.00019726,2]
[373167047,1752888692058,-502.0,0.00019726,2]
[373167048,1752888692068,-480.0,0.00019726,2]
[373167049,1752888692077,-270.0,0.00019726,2]
[373167050,1752888692087,-521.42,0.00019726,2]
[373167051,1752888692097,-481.46,0.00019726,2]
[373167052,1752888692106,-480.0,0.00019726,2]
[373167053,1752888692115,-578.28,0.00019726,2]
[373167054,1752888692125,-1069.98,0.00019726,2]
[373167055,1752888692134,-918.24,0.00019726,2]
[373167056,1752888692144,-480.0,0.00019726,2]
[373167057,1752888692158,-480.0,0.00019726,2]
[373167058,1752888692167,-696.46,0.00019726,2]
[373167059,1752888692177,-480.0,0.00019726,2]
[373167060,1752888692186,-568.95,0.00019726,2]
[373167061,1752888692196,-480.0,0.00019726,2]
[373167062,1752888692206,-920.75,0.00019726,2]
[373167063,1752888692215,-582.29,0.00019726,2]
[373167064,1752888692226,-716.53,0.00019726,2]
[373167065,1752888692236,-480.0,0.00019726,2]
[373167066,1752888692245,-480.0,0.00019726,2]
[373167067,1752888692254,-585.79,0.00019726,2]
[373167068,1752888692263,-495.19,0.00019726,2]
[373167069,1752888692272,-455.87867908,0.00019726,2]
[373167070,1752888692282,-830.19,0.00019726,2]
[373167071,1752888692291,-480.0,0.00019726,2]
[373167072,1752888692301,-4174.88,0.00019726,2]
[373167073,1752888692311,-480.0,0.00019726,2]
[373167074,1752888692320,-650.56,0.00019726,2]
[373167075,1752888692329,-835.95,0.00019726,2]
[373167076,1752888692338,-480.0,0.00019726,2]
[373167077,1752888692348,-268.49494004,0.00019726,2]
[373167078,1752888692357,-933.22,0.00019726,2]
[373167079,1752888692367,-480.0,0.00019726,2]
[373167080,1752888692376,-480.0,0.00019726,2]
[373167081,1752888692385,-480.0,0.00019726,2]
[373167082,1752888692395,-569.06,0.00019726,2]
[373167083,1752888692404,-602.69,0.00019726,2]
[373167084,1752888692413,-480.0,0.00019726,2]
[373167085,1752888692423,-480.0,0.00019726,2]
[373167086,1752888692432,-621.28,0.00019726,2]
[373167087,1752888692442,-1447.89,0.00019726,2]
[373167088,1752888692451,-480.0,0.00019726,2]
[373167089,1752888692461,-480.0,0.00019726,2]
[373167090,1752888692471,-480.0,0.00019726,2]
[373167091,1752888692481,-480.0,0.00019726,2]
[373167092,1752888692491,-910.53,0.00019726,2]
[373167093,1752888692502,-1081.58,0.00019726,2]
[373167094,1752888692512,-480.0,0.00019726,2]
[373167095,1752888692522,-588.15,0.00019726,2]
[373167096,1752888692531,-480.0,0.00019726,2]
[373167097,1752888692541,-480.0,0.00019726,2]
[373167098,1752888692551,-480.0,0.00019726,2]
[373167099,1752888692561,-480.0,0.00019726,2]
[373167100,1752888692571,-480.0,0.00019726,2]
[373167101,1752888692581,-480.0,0.00019726,2]
[373167102,1752888692591,-480.0,0.00019726,2]
[373167103,1752888692602,-3061.9,0.00019726,2]
[373167104,1752888692612,-480.0,0.00019726,2]
[373167105,1752888692621,-650.55,0.00019726,2]
[373167106,1752888692631,-590.15,0.00019726,2]
[373167107,1752888692641,-480.0,0.00019726,2]
[373167108,1752888692653,-765.38,0.00019726,2]
[373167109,1752888692664,-480.0,0.00019726,2]
[373167110,1752888692674,-730.13,0.00019726,2]
[373167111,1752888692684,-779.26,0.00019726,2]
[373167112,1752888692694,-564.9,0.00019726,2]
[373167113,1752888692704,-480.0,0.00019726,2]
[373167114,1752888692715,-480.0,0.00019726,2]
[373167115,1752888692725,-1273.31,0.00019726,2]
[373167116,1752888692735,-480.0,0.00019726,2]
[373167117,1752888692745,-480.0,0.00019726,2]
[373167118,1752888692755,-480.0,0.00019726,2]
[373167119,1752888692765,-856.25,0.00019726,2]
[373167120,1752888692775,-480.0,0.00019726,2]
[373167121,1752888692785,-493.88,0.00019726,2]
[373167122,1752888692795,-480.0,0.00019726,2]
[373167123,1752888692805,-480.0,0.00019726,2]
[373167124,1752888692815,-1090.52,0.00019726,2]
[373167125,1752888692826,-480.0,0.00019726,2]
[373167126,1752888692842,-1533.88,0.00019726,2]
[373167127,1752888692852,-480.0,0.00019726,2]
[373167128,1752888692862,-480.0,0.00019726,2]
[373167129,1752888692872,-497.14,0.00019726,2]
[373167130,1752888692882,-761.08,0.00019726,2]
[373167131,1752888692892,-480.0,0.00019726,2]
[373167132,1752888692902,-480.0,0.00019726,2]
[373167133,1752888692913,-590.77,0.00019726,2]
[373167134,1752888692923,-480.0,0.00019726,2]
[373167135,1752888692933,-233.31878251,0.00019726,2]
[373167136,1752888692943,-480.0,0.00019726,2]
[373167137,1752888692954,-572.66,0.00019726,2]
[373167138,1752888692963,-1780.4,0.00019726,2]
[373167139,1752888692974,-480.0,0.00019726,2]
[373167140,1752888692983,-480.0,0.00019726,2]
[373167141,1752888692994,-982.44,0.00019726,2]
[373167142,1752888693004,-583.37,0.00019726,2]
[373167143,1752888693014,-932.52,0.00019726,2]
[373167144,1752888693024,-480.0,0.00019726,2]
[373167145,1752888693044,-480.0,0.00019726,2]
[373167146,1752888693057,-566.63,0.00019726,2]
[373167147,1752888693067,-568.61,0.00019726,2]
[373167148,1752888693077,-607.81,0.00019726,2]
[373167149,1752888693087,-576.95,0.00019726,2]
[373167150,1752888693097,-1155.68,0.00019726,2]
[373167151,1752888693107,-696.38,0.00019726,2]
[373167152,1752888693117,-496.58,0.00019726,2]
[373167153,1752888693127,-709.78,0.00019726,2]
[373167154,1752888693137,-480.0,0.00019726,2]
[373167155,1752888693147,-724.41,0.00019726,2]
[373167156,1752888693162,-480.0,0.00019726,2]
[373167157,1752888693172,-480.0,0.00019726,2]
[373167158,1752888693182,-480.0,0.00019726,2]
[373167159,1752888693193,-719.42,0.00019726,2]
[373167160,1752888693203,-480.0,0.00019726,2]
[373167161,1752888693214,-196.22,0.00019726,2]
[373167162,1752888693223,-640.67,0.00019726,2]
[373167163,1752888693235,-487.25,0.00019726,2]
[373167164,1752888693246,-480.0,0.00019726,2]
[373167165,1752888693256,-480.0,0.00019726,2]
[373167166,1752888693267,-480.0,0.00019726,2]
[373167167,1752888693277,-495.49,0.00019726,2]
[373167168,1752888693287,-3131.25,0.00019726,2]
[373167169,1752888693297,-480.0,0.00019726,2]
[373167170,1752888693308,-1078.16,0.00019726,2]
[373167171,1752888693319,-480.0,0.00019726,2]
[373167172,1752888693328,-480.0,0.00019726,2]
[373167173,1752888693339,-480.0,0.00019726,2]
[373167174,1752888693349,-480.0,0.00019726,2]
[373167175,1752888693359,-480.0,0.00019726,2]
[373167176,1752888693370,-706.8,0.00019726,2]
[373167177,1752888693381,-898.9,0.00019726,2]
[373167178,1752888693391,-553.3,0.00019726,2]
[373167179,1752888693401,-2995.02,0.00019726,2]
[373167180,1752888693413,-871.17,0.00019726,2]
[373167181,1752888693424,-3995.22,0.00019726,2]
[373167182,1752888693434,-480.0,0.00019726,2]
[373167183,1752888693445,-480.0,0.00019726,2]
[373167184,1752888693455,-1340.32,0.00019726,2]
[373167185,1752888693466,-1013.99,0.00019726,2]
[373167186,1752888693477,-1855.61,0.00019726,2]
[373167187,1752888693487,-612.82,0.00019726,2]
[373167188,1752888693497,-480.0,0.00019726,2]
[373167189,1752888693507,-5464.38,0.00019726,2]
[373167190,1752888693517,-1917.13,0.00019726,2]
[373167191,1752888693527,-823.03,0.00019726,2]
[373167192,1752888693538,-528.33,0.00019726,2]
[373167193,1752888693549,-480.0,0.00019726,2]
[373167194,1752888693559,-1681.6,0.00019726,2]
[373167195,1752888693569,-720.52,0.00019726,2]
[373167196,1752888693579,-13559.65,0.00019726,2]
[373167197,1752888693590,-968.31,0.00019726,2]
[373167198,1752888693600,-1252.73,0.00019726,2]
[373167199,1752888693610,-791.37,0.00019726,2]
[373167200,1752888693621,-875.72,0.00019726,2]
[373167201,1752888693631,-480.0,0.00019726,2]
[373167202,1752888693642,-509.77,0.00019726,2]
[373167203,1752888693652,-480.0,0.00019726,2]
[373167204,1752888693664,-480.0,0.00019726,2]
[373167205,1752888693674,-535.75,0.00019726,2]
[373167206,1752888693683,-480.0,0.00019726,2]
[373167207,1752888693693,-802.98,0.00019726,2]
[373167208,1752888693704,-1032.63,0.00019726,2]
[373167209,1752888693714,-1005.17,0.00019726,2]
[373167210,1752888693725,-1082.65,0.00019726,2]
[373167211,1752888693735,-969.04,0.00019726,2]
[373167212,1752888693746,-480.0,0.00019726,2]
[373167213,1752888693756,-480.0,0.00019726,2]
[373167214,1752888693767,-1514.35,0.00019726,2]
[373167215,1752888693776,-1629.45,0.00019726,2]
[373167216,1752888693787,-480.0,0.00019726,2]
[373167217,1752888693797,-805.13,0.00019726,2]
[373167218,1752888693807,-155.560531,0.00019726,2]
[373167219,1752888693818,-158.295973,0.00019726,2]
[373167220,1752888693828,-1066.81,0.00019726,2]
[373167221,1752888693838,-4796.86,0.00019726,2]
[373167222,1752888693849,-480.0,0.00019726,2]
[373167223,1752888693859,-480.0,0.00019726,2]
[373167224,1752888693870,-351.96392871,0.00019726,2]
[373167225,1752888693880,-6197.942388,0.00019726,2]
[373167226,1752888693890,-1021.81,0.00019726,2]
[373167227,1752888693901,-480.0,0.00019726,2]
[373167228,1752888693913,-480.0,0.00019726,2]
[373167229,1752888693924,-6221.808823,0.00019726,2]
[373167230,1752888693934,-3566.89,0.00019726,2]
[373167231,1752888693944,-480.0,0.00019726,2]
[373167232,1752888693955,-1603.75,0.00019726,2]
[373167233,1752888693965,-480.0,0.00019726,2]
[373167234,1752888693975,-821.44,0.00019726,2]
[373167235,1752888693985,-821.18,0.00019726,2]
[373167236,1752888693995,-480.0,0.00019726,2]
[373167237,1752888694005,-480.0,0.00019726,2]
[373167238,1752888694015,-2490.92,0.00019726,2]
[373167239,1752888694025,-1634.05,0.00019726,2]
[373167240,1752888694035,-604.7,0.00019726,2]
[373167241,1752888694045,-3087.9,0.00019726,2]
[373167242,1752888694055,-970.72,0.00019726,2]
[373167243,1752888694065,-1748.84,0.00019726,2]
[373167244,1752888694075,-480.0,0.00019726,2]
[373167245,1752888694086,-535.15366323,0.00019726,2]
[373167246,1752888694096,-532.91,0.00019726,2]
[373167247,1752888694106,-480.0,0.00019726,2]
[373167248,1752888694116,-603.46,0.00019726,2]
[373167249,1752888694126,-150.977883,0.00019726,2]
[373167250,1752888694135,-480.0,0.00019726,2]
[373167251,1752888694145,-1915.86,0.00019726,2]
[373167252,1752888694159,-1057.88,0.00019726,2]
[373167253,1752888694169,-480.0,0.00019726,2]